Cogmind - Beta 17.1 @@@ ROGUE MODE // 2026.09.07 @ 12:00:18 Player: Petvaria Result: Self-destructed Performance ------------- Evolutions (3) 1500 Regions Visited (9) 1800 Robots Destroyed (62) 310 Value Destroyed (1615) 1615 Prototype IDs (26) 520 Alien Tech Used (0) 0 Bonus (-134) -134 TOTAL SCORE: 5611 Bonus ------- Aligned with FarCom 300 Friendly Fire -434 Cogmind --------- Core Integrity 454/700 Matter 198/300 Energy 290/290 System Corruption 0% Temperature Cool (0) Movement Treading (240) Ox1 Location -7/Data Miner Parts ------- > --- POWER (1) -------- Improved Deuterium Engine > --- PROPULSION (4) --- Light Treads Light Treads Light Treads Light Treads > --- UTILITY (5) ------ Improved Heat Sink Huge Storage Unit Advanced Terrain Scan Processor Weapon Cycler Improved Medium Armor Plating > --- WEAPON (3) ------- Gauss Rifle Gauss Rifle Gauss Rifle > --- INVENTORY (25) --- Improved Deuterium Engine Light Treads Light Treads Wheel Wheel Improved Heat Sink Huge Storage Unit Compact Matter Pod (150) Machine Analyzer Improved Medium Laser Plasma Cannon Heavy Assault Rifle Flak Gun Flak Gun Gauss Cannon Advanced EMP Blaster Makeshift Axe Peak State ------------ > --- POWER ------------ Improved Deuterium Engine > --- PROPULSION ------- Light Treads Light Treads Light Treads Light Treads > --- UTILITY ---------- Improved Heat Sink Huge Storage Unit Advanced Terrain Scan Processor Weapon Cycler Improved Medium Armor Plating > --- WEAPON ----------- Improved Medium Laser Gauss Rifle Gauss Rifle > --- INVENTORY -------- Improved Deuterium Engine Light Treads Light Treads Wheel Wheel Improved Heat Sink Huge Storage Unit Compact Matter Pod Machine Analyzer Experimental Sensor Array 0b10 Alert Chip Trap Reconfigurator Improved Medium Laser Plasma Cannon Firepult Light Assault Rifle Heavy Assault Rifle Gauss Rifle Gauss Rifle Flak Gun Flak Gun Gauss Cannon Advanced EMP Blaster Chainsword [Rating: 45] Favorites ----------- Power Improved Deuterium Engine Engine Improved Deuterium Engine Power Core Nuclear Core Propulsion Light Treads Treads Light Treads Wheel Wheel Flight Unit Cesium-ion Thruster Utility Huge Storage Unit Device Improved Heat Sink Storage Huge Storage Unit Processor Improved Terrain Scan Processor Hackware System Shield Protection Improved Medium Armor Plating Weapon Gauss Rifle Energy Gun Improved Medium Laser Energy Cannon Plasma Cannon Ballistic Gun Gauss Rifle Launcher Advanced EMP Blaster Slashing Weapon Chainsword Build | -11 -10 -10 -10 -9 -8 -7 -7 -7 -7 ------- Run | Yrd Mat Min Exi Min Mat Fac Low Low Dat Slots Evolved 6 | . . . . . 4 2 . . . Power . | . . . . . . . . . . Propulsion 2 | . . . . . 2 . . . . Utility 3 | . . . . . 2 1 . . . Weapon 1 | . . . . . . 1 . . . Parts Attached 61 | 3 . 4 . 1 27 18 5 3 . Power 5 | . . . . . 2 3 . . . Engine 3 | . . . . . 1 2 . . . Core 2 | . . . . . 1 1 . . . Reactor . | . . . . . . . . . . Propulsion 16 | . . . . . 12 3 1 . . Treads 8 | . . . . . 4 3 1 . . Leg . | . . . . . . . . . . Wheel 7 | . . . . . 7 . . . . Hover . | . . . . . . . . . . Flight 1 | . . . . . 1 . . . . Utility 18 | 1 . 2 . 1 5 7 2 . . Device 7 | 1 . 1 . 1 1 2 1 . . Storage 3 | . . . . . 2 1 . . . Processor 2 | . . 1 . . . 1 . . . Hackware 2 | . . . . . . 2 . . . Protection 4 | . . . . . 2 1 1 . . Artifact . | . . . . . . . . . . Weapon 22 | 2 . 2 . . 8 5 2 3 . Energy Gun 5 | 1 . . . . 4 . . . . Energy Cannon 1 | . . . . . . 1 . . . Ballistic Gun 14 | 1 . 2 . . 4 2 2 3 . Ballistic Cannon . | . . . . . . . . . . Launcher 1 | . . . . . . 1 . . . Special Weapon . | . . . . . . . . . . Impact Weapon . | . . . . . . . . . . Slashing Weapon 1 | . . . . . . 1 . . . Piercing Weapon . | . . . . . . . . . . Special Melee Weapon . | . . . . . . . . . . Unidentified Prototypes 3 | . . . . 1 1 1 . . . Parts Lost 17 | . . 1 . . 14 1 . 1 . Power 1 | . . . . . 1 . . . . Propulsion 6 | . . . . . 6 . . . . Utility 4 | . . 1 . . 2 1 . . . Weapon 6 | . . . . . 5 . . 1 . Highest Loss Streak 4 | . . 1 . . 4 1 . 1 . To Critical Strikes . | . . . . . . . . . . Average Backups 15 | 1 4 5 4 4 11 23 23 21 . Power 1 | . 1 1 . . . 1 1 1 . Propulsion 2 | . . . . . . 2 4 4 . Utility 5 | . . 1 2 3 5 8 7 6 . Weapon 6 | . 2 2 1 1 3 10 11 10 . Tool/Special . | . . . . . . . . . . Unused Backups 24 | . . . 3 1 . 8 2 2 8 Power 4 | . . . 1 . . 3 . . . Propulsion 1 | . . . . . . . . . 1 Utility 8 | . . . 1 1 . 2 . 1 3 Weapon 11 | . . . 1 . . 3 2 1 4 Tool/Special . | . . . . . . . . . . Average Slot Usage (%) 81 | . 42 43 57 57 74 93 99 99 . Engine 3 | . . . . . 2 4 7 7 . Core 1 | . . . . . 3 2 . . . Treads 18 | . . . . . 11 30 30 30 . Wheel 3 | . . . . . 11 . . . . Device 9 | . 14 12 14 14 1 6 14 15 . Storage 7 | . . . . . 12 7 7 7 . Processor 7 | . . 2 14 14 9 7 7 7 . Protection 4 | . . . . . 5 5 7 7 . Energy Gun 7 | . 14 13 14 14 6 7 7 4 . Ballistic Gun 13 | . 14 14 14 14 10 14 15 17 . Peak Build Rating 45 | 3 3 6 9 17 28 41 45 45 . Average Rating 26 | 1 3 3 7 9 17 34 43 43 . On Entrance 17 | . 3 3 6 9 10 24 35 45 40 Avg Prop Armor Cover (%) 12 | . . . . . 12 . . . . Naked Turns . | . . . . . . . . . . Heaviest Build 116 | 3 3 3 3 3 97 116 110 111 . Greatest Support 80 | 3 3 3 3 3 80 80 80 80 . Greatest Overweight (x) 9 | . . . . . 9 1 1 1 . Average Overweight (x) . | . . . . . 1 1 1 1 . Largest Inventory Capacity 25 | 5 5 5 5 5 25 25 25 25 . Average Capacity 18 | 5 5 5 5 5 16 25 25 25 . Most Carried 25 | 3 5 5 5 5 25 25 25 25 . Average Carried 16 | 1 4 4 4 5 12 24 24 22 . Final Capacity 25 | 5 5 5 5 5 25 25 25 25 25 Final Carried 25 | 2 5 5 5 5 25 25 25 17 17 Class Distribution -------------------- 44% | Scavenger-Tank 23% | Scavenger-Mutant 16% | Mutant 10% | Scout 3% | Scavenger-Gunner Dominant Class ---------------- Mutant | -10/Materials Mutant | -10/Mines Mutant | -10/Exiles Scout | -9/Mines Scavenger-Mutant | -8/Materials Scavenger-Tank | -7/Factory Scavenger-Tank | -7/Lower Caves Scavenger-Tank | -7/Lower Caves Scavenger-Tank | -7/Data Miner Resources | -11 -10 -10 -10 -9 -8 -7 -7 -7 -7 ----------- Run | Yrd Mat Min Exi Min Mat Fac Low Low Dat Matter Collected 1806 | 248 . 121 . . 537 384 332 184 . Remotely . | . . . . . . . . . . Salvage Created 2516 | 103 48 123 . . 1169 629 218 226 . Parts 142 | 10 4 4 . . 77 32 8 7 . Haulers Intercepted 3 | . 1 . . . 1 1 . . . Recyclers Shooed 4 | . . . . . 4 . . . . Parts Field Recycled . | . . . . . . . . . . Retrieved Matter . | . . . . . . . . . . Parts Self-Destructed 10 | . . . . . . . 5 5 . Prevented . | . . . . . . . . . . Parts Restored . | . . . . . . . . . . Kills | -11 -10 -10 -10 -9 -8 -7 -7 -7 -7 ------- Run | Yrd Mat Min Exi Min Mat Fac Low Low Dat Combat Hostiles Destroyed 40 | . . 4 . . 20 11 2 3 . Guns 40 | . . 4 . . 20 11 2 3 . Classes Destroyed 17 | 2 1 2 . . 7 2 2 1 . Worker 8 | . . . . . 8 . . . . Builder 1 | . . . . . 1 . . . . Tunneler 3 | 3 . . . . . . . . . Hauler 3 | . 1 . . . 1 1 . . . Recycler 5 | 1 . . . . 4 . . . . Operator 1 | . . . . . 1 . . . . Watcher 1 | . . . . . 1 . . . . Swarmer 10 | . . . . . 10 . . . . Grunt 15 | . . 2 . . 4 7 . 2 . Duelist 1 | . . . . . . 1 . . . Sentry 7 | . . . . . 4 2 . 1 . Hunter 4 | . . . . . 2 . 2 . . Programmer 1 | . . . . . . 1 . . . Samaritan 1 | . . . . . . . 1 . . Assembled 2 | . . 2 . . . . . . . Savage 1 | . . . . . . . 1 . . Mutant 1 | . . . . . . . . 1 . Best Kill Streak 6 | 4 1 2 . . 6 3 1 3 . Combat Bots Only 5 | . . 2 . . 5 3 1 3 . Max Kills in Single Turn 2 | 1 1 1 . . 2 1 1 1 . Gunslinging 1 | . . . . . 1 . . . . Exploded . | . . . . . . . . . . Melee . | . . . . . . . . . . Uniques/NPCs Destroyed . | . . . . . . . . . . Combat | -11 -10 -10 -10 -9 -8 -7 -7 -7 -7 -------- Run | Yrd Mat Min Exi Min Mat Fac Low Low Dat Hostile Shots Fired 396 | . . 38 . . 132 154 14 58 . Missed 126 | . . 9 . . 30 67 4 16 . Hits 270 | . . 29 . . 102 87 10 42 . Melee 17 | . . . . . . 8 . 9 . Projectile 253 | . . 29 . . 102 79 10 33 . Critical Strikes 8 | . . . . . 5 3 . . . Damage Taken 3463 | . . 371 . . 1494 1128 138 332 . Core 869 | . . 117 . . 506 216 10 20 . Absorbed by Shields . | . . . . . . . . . . Regen/Repaired (Parts) 86 | . . . . . . 86 . . . Core Remaining (%) 53 | 100 . . . 53 8 . . . . Volleys Fired 245 | 18 5 16 . . 128 47 12 19 . Largest 3 | 2 2 2 . . 2 3 3 3 . Hottest 128 | 60 60 60 . . 128 107 107 112 . Shots Fired 543 | 36 7 32 . . 244 133 36 55 . Gun 541 | 36 7 32 . . 244 131 36 55 . Cannon 2 | . . . . . . 2 . . . Launcher . | . . . . . . . . . . Special . | . . . . . . . . . . Kinetic 369 | 18 5 24 . . 161 86 24 51 . Thermal 174 | 18 2 8 . . 83 47 12 4 . Explosive . | . . . . . . . . . . Electromagnetic . | . . . . . . . . . . Robot Hit Streak 25 | 5 2 7 . . 21 25 15 23 . Robot Miss Streak 7 | 3 2 3 . . 7 3 3 3 . Penetration Max 1 | . . . . . . 1 . . . Secondary Targets 9 | . . . . . 3 4 . 2 . Max Gunslinging Chain 1 | . . . . . 1 1 . 1 . Shots Hit Robots 368 | 20 3 19 . . 171 90 27 38 . Core Hits 166 | 7 3 11 . . 93 27 11 14 . Critical Kills . | . . . . . . . . . . Critical Parts Destroyed 5 | 1 . 1 . . 1 1 . 1 . Critical Strikes 9 | 1 . 1 . . 3 3 . 1 . Burn 4 | . . . . . 2 2 . . . Destroy 5 | 1 . 1 . . 1 1 . 1 . Melee Attacks . | . . . . . . . . . . Impact . | . . . . . . . . . . Slashing . | . . . . . . . . . . Piercing . | . . . . . . . . . . Sneak Attacks . | . . . . . . . . . . Combat Hostiles . | . . . . . . . . . . Follow-up Attacks . | . . . . . . . . . . Damage Inflicted 5310 | 206 32 235 . . 2122 1592 416 707 . Guns 5250 | 206 32 225 . . 2105 1559 416 707 . Cannons . | . . . . . . . . . . Explosions 25 | . . . . . . 25 . . . Melee . | . . . . . . . . . . Ramming 35 | . . 10 . . 17 8 . . . Kinetic 3324 | 93 20 168 . . 1080 1048 241 674 . Thermal 1951 | 113 12 57 . . 1025 536 175 33 . Explosive . | . . . . . . . . . . Electromagnetic . | . . . . . . . . . . Impact . | . . . . . . . . . . Slashing . | . . . . . . . . . . Piercing . | . . . . . . . . . . Highest Corruption 2 | . . . . . 2 . . . . Average Corruption 2 | . . . . . 2 . . . . Corruption Purged . | . . . . . . . . . . Corruption Blocked . | . . . . . . . . . . Effects 14 | . . . . . 14 . . . . Message Errors 3 | . . . . . 3 . . . . Matter Fused 2 | . . . . . 2 . . . . Heat Flow Errors 3 | . . . . . 3 . . . . Energy Discharges 1 | . . . . . 1 . . . . Parts Rejected 1 | . . . . . 1 . . . . Data Loss (minor) 3 | . . . . . 3 . . . . Misfires 1 | . . . . . 1 . . . . Overload Shots . | . . . . . . . . . . Overflow Damage . | . . . . . . . . . . Projectiles . | . . . . . . . . . . Explosions . | . . . . . . . . . . Melee . | . . . . . . . . . . Knockbacks 1 | . . . . . . 1 . . . Impact 1 | . . . . . . 1 . . . Kinetic . | . . . . . . . . . . Secondary . | . . . . . . . . . . Self-Inflicted Damage 5 | . . 5 . . . . . . . Shots . | . . . . . . . . . . Rammed 7 | . . 4 . . 2 1 . . . Targets Rammed 7 | . . 4 . . 2 1 . . . Kicked . | . . . . . . . . . . Crushed . | . . . . . . . . . . Highest Temperature 352 | 20 10 10 . . 352 100 56 52 . Average Temperature 61 | 9 7 6 . . 88 27 27 13 . Received Heat Transfer 1003 | . . 178 . . 306 387 . 132 . Effects 1 | . . . . . 1 . . . . Damage (minor) 1 | . . . . . 1 . . . . Siege Activations . | . . . . . . . . . . Martial Activations . | . . . . . . . . . . Shielding Activations . | . . . . . . . . . . Robots Disrupted . | . . . . . . . . . . Combat Hostiles . | . . . . . . . . . . Robots Corrupted . | . . . . . . . . . . Combat Hostiles . | . . . . . . . . . . Parts Fried . | . . . . . . . . . . Impact Corruptions . | . . . . . . . . . . Robots Melted . | . . . . . . . . . . Combat Hostiles . | . . . . . . . . . . Parts Melted 4 | . . . . . 2 1 1 . . Heat Transferred 4155 | 250 25 125 . . 2040 1271 370 74 . Parts Sabotaged . | . . . . . . . . . . Parts Stolen 6 | . . . . . . . . 6 . Parts Stripped . | . . . . . . . . . . Power Chain Reactions . | . . . . . . . . . . Alert | -11 -10 -10 -10 -9 -8 -7 -7 -7 -7 ------- Run | Yrd Mat Min Exi Min Mat Fac Low Low Dat Maximum Alert Level 1 | . . . . . 1 . . . . Low Security (%) 68 | 100 100 100 . 100 28 100 . . . Level 1 31 | . . . . . 71 . . . . Level 2 . | . . . . . . . . . . Level 3 . | . . . . . . . . . . Level 4 . | . . . . . . . . . . Level 5 . | . . . . . . . . . . High Security . | . . . . . . . . . . Max Security . | . . . . . . . . . . Peak Influence 396 | 10 7 50 . . 396 198 . . . Initial 150 | . . . . . . 150 . . . Average 135 | 3 . 4 . . 243 97 . . . Influence Increases 1608 | 20 13 50 . . 959 446 60 60 . Destroy 0b10 Robot/C 760 | . . 40 . . 400 220 40 60 . Destroy 0b10 Robot/NC 110 | 20 5 . . . 80 5 . . . Destroy Leader 198 | . 2 10 . . 114 52 20 . . Successful Hack 46 | . 6 . . . 12 28 . . . Disable Machine 60 | . . . . . 15 45 . . . Anti-Garrison Action 200 | . . . . . 200 . . . . Destroy Structure 24 | . . . . . 3 21 . . . Lose Combat Pursuer 210 | . . . . . 135 75 . . . Influence Decreases 1608 | 20 13 50 . . 627 596 242 60 . Entered New Map 250 | . . . . . . 182 68 . . Time Decay 1232 | 20 13 50 . . 511 404 174 60 . Lost Part 126 | . . . . . 116 10 . . . Squads Dispatched 10 | . . 1 . . 3 6 . . . Investigation 3 | . . 1 . . 1 1 . . . Extermination 1 | . . . . . . 1 . . . Reinforcement 3 | . . . . . 2 1 . . . Assault . | . . . . . . . . . . Garrison 3 | . . . . . . 3 . . . Intercept . | . . . . . . . . . . Searches Triggered . | . . . . . . . . . . Construction Impeded . | . . . . . . . . . . Haulers Reinforced . | . . . . . . . . . . Active Scanning Responses . | . . . . . . . . . . Cargo Convoy Interrupts . | . . . . . . . . . . Stealth | -11 -10 -10 -10 -9 -8 -7 -7 -7 -7 --------- Run | Yrd Mat Min Exi Min Mat Fac Low Low Dat Distress Signals 10 | . . . . . 8 2 . . . Communications Jammed . | . . . . . . . . . . Distress Signals . | . . . . . . . . . . Times Spotted 84 | . 3 8 . . 40 22 2 9 . Peak Tracking Total 5 | . 2 3 . . 5 5 1 5 . Tactical Retreats 10 | . . . . . 7 3 . . . Traps | -11 -10 -10 -10 -9 -8 -7 -7 -7 -7 ------- Run | Yrd Mat Min Exi Min Mat Fac Low Low Dat Traps Triggered 1 | . . . . . 1 . . . . Indirectly . | . . . . . . . . . . Trap Hack Attempts . | . . . . . . . . . . Triggered . | . . . . . . . . . . Disarmed . | . . . . . . . . . . Reprogrammed . | . . . . . . . . . . Reused . | . . . . . . . . . . Traps Extracted . | . . . . . . . . . . Installed . | . . . . . . . . . . Triggered . | . . . . . . . . . . Machines | -11 -10 -10 -10 -9 -8 -7 -7 -7 -7 ---------- Run | Yrd Mat Min Exi Min Mat Fac Low Low Dat Machines Disabled 4 | . . . . . 1 3 . . . Max in Single Turn 3 | . . . . . 1 3 . . . Garrison Access 1 | . . . . . 1 . . . . Machines Repaired . | . . . . . . . . . . Machines Dismantled . | . . . . . . . . . . Machines Sabotaged . | . . . . . . . . . . Overloaded Fab Kills . | . . . . . . . . . . Hacking | -11 -10 -10 -10 -9 -8 -7 -7 -7 -7 --------- Run | Yrd Mat Min Exi Min Mat Fac Low Low Dat Machines Accessed 12 | . 1 1 2 . 4 3 1 . . Terminals 4 | . 1 . . . 2 1 . . . Fabricators . | . . . . . . . . . . Repair Stations 1 | . . . . . . 1 . . . Recycling Units . | . . . . . . . . . . Scanalyzers 2 | . . . . . 1 1 . . . Garrison Access 1 | . . . . . 1 . . . . Total Hacks 24 | . 2 1 2 . 10 8 1 . . Successful 17 | . 1 1 2 . 7 5 1 . . Failed 7 | . 1 . . . 3 3 . . . Catastrophic 1 | . . . . . . 1 . . . Database Lockouts . | . . . . . . . . . . Manual 8 | . 2 . 1 . 5 . . . . Terminals 9 | . 2 . . . 4 3 . . . Fabricators . | . . . . . . . . . . Repair Stations 2 | . . . . . . 2 . . . Recycling Units . | . . . . . . . . . . Scanalyzers 7 | . . . . . 4 3 . . . Garrison Access 2 | . . . . . 2 . . . . Terminal Hacks 8 | . . 1 2 . 2 2 1 . . Record 1 | . . . 1 . . . . . . Open Door 2 | . . 1 . . . . 1 . . Branch Access Points 1 | . . . . . . 1 . . . Unreport Threat 1 | . . . . . 1 . . . . Hauler Manifests 1 | . . . . . 1 . . . . Registered Components 1 | . . . . . . 1 . . . Proto ID Catalog 1 | . . . 1 . . . . . . Fabricator Hacks . | . . . . . . . . . . Repair Station Hacks 2 | . . . . . . 2 . . . Scan Component 1 | . . . . . . 1 . . . Repair 1 | . . . . . . 1 . . . Recycling Unit Hacks . | . . . . . . . . . . Scanalyzer 5 | . . . . . 4 1 . . . Retrieve Study 5 | . . . . . 4 1 . . . Garrison Access Hacks . | . . . . . . . . . . Unauthorized Hacks 2 | . 1 . . . 1 . . . . Terminals 1 | . 1 . . . . . . . . Operators 1 | . 1 . . . . . . . . Fabricators . | . . . . . . . . . . Repair Stations . | . . . . . . . . . . Recycling Units . | . . . . . . . . . . Scanalyzers . | . . . . . . . . . . Garrison Access 1 | . . . . . 1 . . . . Jam 1 | . . . . . 1 . . . . Data Cores Recovered . | . . . . . . . . . . Used . | . . . . . . . . . . Hacking Detections 5 | . . . . . 3 2 . . . Full Trace Events 1 | . . . . . . 1 . . . Feedback Events . | . . . . . . . . . . Feedback Blocked . | . . . . . . . . . . Robot Schematics Acquired . | . . . . . . . . . . Robots Built . | . . . . . . . . . . Authchips . | . . . . . . . . . . Time . | . . . . . . . . . . Total Robot Build Rating . | . . . . . . . . . . Part Schematics Acquired . | . . . . . . . . . . Parts Built . | . . . . . . . . . . Authchips . | . . . . . . . . . . Time . | . . . . . . . . . . Total Part Build Rating . | . . . . . . . . . . Part Studies Acquired 5 | . . . . . 4 1 . . . Parts Repaired 1 | . . . . . . 1 . . . Time 26 | . . . . . . 26 . . . Parts Recycled . | . . . . . . . . . . Recycled Matter . | . . . . . . . . . . Retrieved Matter . | . . . . . . . . . . Retrieved Components . | . . . . . . . . . . Parts Scanalyzed . | . . . . . . . . . . Part Schematics Acquired . | . . . . . . . . . . Parts Damaged . | . . . . . . . . . . Bothacking | -11 -10 -10 -10 -9 -8 -7 -7 -7 -7 ------------ Run | Yrd Mat Min Exi Min Mat Fac Low Low Dat Used RIF Installer . | . . . . . . . . . . Robots Hacked . | . . . . . . . . . . Non-combat . | . . . . . . . . . . Combat . | . . . . . . . . . . Robot Hacks Applied . | . . . . . . . . . . Relay Couplers Released . | . . . . . . . . . . Fabnet Peak Effective % . | . . . . . . . . . . Robots Rewired . | . . . . . . . . . . Allies Hacked . | . . . . . . . . . . Hacks Repelled . | . . . . . . . . . . Allies | -11 -10 -10 -10 -9 -8 -7 -7 -7 -7 -------- Run | Yrd Mat Min Exi Min Mat Fac Low Low Dat Total Allies . | . . . . . . . . . . Largest Group . | . . . . . . . . . . Highest-Rated Group . | . . . . . . . . . . Highest-Rated Ally . | . . . . . . . . . . Total Orders . | . . . . . . . . . . Ally Attacks . | . . . . . . . . . . Total Damage . | . . . . . . . . . . Kills . | . . . . . . . . . . Allies Corrupted . | . . . . . . . . . . Allies Melted . | . . . . . . . . . . Intel | -11 -10 -10 -10 -9 -8 -7 -7 -7 -7 ------- Run | Yrd Mat Min Exi Min Mat Fac Low Low Dat Active Infowar (turns) 1384 | 9 116 415 209 389 246 . . . . Sensors 1 | . . . . 1 . . . . . Terrain 922 | . . 79 209 388 246 . . . . Seismic 461 | 9 116 336 . . . . . . . Robot Analysis Total . | . . . . . . . . . . Derelict Logs Recovered 5 | . . 2 . 1 . . . 2 . Drone Launches . | . . . . . . . . . . Drone Recoveries . | . . . . . . . . . . Exploration | -11 -10 -10 -10 -9 -8 -7 -7 -7 -7 ------------- Run | Yrd Mat Min Exi Min Mat Fac Low Low Dat Turns Passed 5818 | 81 116 462 209 389 1633 966 930 1032 . Spaces Moved 2962 | 46 203 225 407 97 914 301 367 402 . Core 1142 | 46 203 225 407 97 164 . . . . Treads 1173 | . . . . . 103 301 367 402 . Legs . | . . . . . . . . . . Wheels 516 | . . . . . 516 . . . . Hover . | . . . . . . . . . . Flight 131 | . . . . . 131 . . . . Fastest Speed 35 | 50 50 50 50 50 35 240 240 240 . Average Speed 137 | 50 50 50 50 50 111 240 240 240 . Slowest Speed 300 | 50 50 50 50 50 300 240 240 240 . Overloaded Moves . | . . . . . . . . . . Propulsion Burnouts . | . . . . . . . . . . Robots Hopped 3 | . . . . . 3 . . . . Potential Cave-ins 1 | . . 1 . . . . . . . Cave-ins Triggered . | . . . . . . . . . . Exploration Rate (%) 36 | 3 38 37 62 18 57 9 57 69 15 Regions Visited 9 Branch Regions 6 Pre-discovered Areas 3 | . . 1 1 . . . . 1 . Known Exits Taken 2 | . . . . . 1 1 . . . Unknown Exits Taken 7 | 1 1 1 1 1 . . 1 1 . Scrap Searched 1 | . . . . . . . 1 . . Spaces Dug . | . . . . . . . . . . Terrain Destroyed 18 | . . . . . . 15 . 3 . Melee . | . . . . . . . . . . Projectile 2 | . . . . . . . . 2 . AOE 15 | . . . . . . 15 . . . Terrain Rammed . | . . . . . . . . . . Walls Destroyed . | . . . . . . . . . . Machines Disabled . | . . . . . . . . . . Actions | -11 -10 -10 -10 -9 -8 -7 -7 -7 -7 --------- Run | Yrd Mat Min Exi Min Mat Fac Low Low Dat Total 4251 | 71 210 543 413 436 1285 453 401 439 . Wait 866 | . . 287 . 336 186 42 7 8 . Move 2947 | 45 202 224 406 96 907 300 366 401 . Hop 3 | . . . . . 3 . . . . Pick Up 71 | 5 3 3 3 1 30 17 5 4 . Fast Attach 16 | . . 2 . . 11 3 . . . Attach 26 | 3 . 2 . . 12 4 2 3 . Detach 2 | . . . . . 1 1 . . . Swap 26 | . . 2 . 2 5 14 3 . . Drop 42 | . . 3 4 1 . 24 6 4 . Fire 245 | 18 5 16 . . 128 47 12 19 . Melee . | . . . . . . . . . . Ram 4 | . . 4 . . . . . . . Kick . | . . . . . . . . . . Crush 3 | . . . . . 2 1 . . . Escape Stasis . | . . . . . . . . . . Rewire . | . . . . . . . . . . Trap . | . . . . . . . . . . Miscellaneous . | . . . . . . . . . . Route ------- -11/Scrapyard -10/Materials -10/Mines (discovered 3 exits: [*Mat] / *Exi / [*Sub]) -10/Exiles -9/Mines -8/Materials -7/Factory (discovered 2 exits: *Low x2) -7/Lower Caves -7/Lower Caves (discovered 2 exits: [*Fac] / [*Dat]) -7/Data Miner History --------- Turn | Location | Event 11 | -11/Scrapyard | Discovered new exit (range 15) 82 | -11/Scrapyard | Entered Materials 143 | -10/Materials | Discovered new exit (range 7) 198 | -10/Materials | Entered Mines 199 | -10/Mines | Assembled infested the area 270 | -10/Mines | Discovered new exit (range 7) 300 | -10/Mines | Build established: Mutant 533 | -10/Mines | Discovered new exit (range 5) 549 | -10/Mines | Met a Derelict shopkeep closing up shop 590 | -10/Mines | Learned location of Zion (-6) 654 | -10/Mines | Deemed a non-threat by the Exiles lab entrance 654 | -10/Mines | Discovered new exit (range 5) 660 | -10/Mines | Entered Exiles 673 | -10/Exiles | Met 8R-AWN 682 | -10/Exiles | Met EX-HEX 695 | -10/Exiles | Met EX-BIN 701 | -10/Exiles | Aligned with FarCom system 702 | -10/Exiles | Given EX-Vault access code 713 | -10/Exiles | Opened EX-Vault 717 | -10/Exiles | Found Trap Reconfigurator 728 | -10/Exiles | Warned to stay clear of 0b10 Research branches 745 | -10/Exiles | Met EX-DEC 769 | -10/Exiles | Discovered new exit (range 10) 818 | -10/Exiles | Found Firepult 820 | -10/Exiles | Found 0b10 Alert Chip 869 | -10/Exiles | Stole three prototypes: 0b10 Alert Chip, Trap Reconfigurator, Firepult 869 | -10/Exiles | Entered Mines 1163 | -9/Mines | Build established: Scout 1184 | -9/Mines | Learned location of 1 exit from Materials 1194 | -9/Mines | Found a damaged Exp. Sensor Array with a note attached 1195 | -9/Mines | Found Prototype Device 1196 | -9/Mines | Identified Exp. Sensor Array 1247 | -9/Mines | Discovered new exit (range 9) 1258 | -9/Mines | Entered Materials 1258 | -8/Materials | Evolved 4 slots: Propulsion x2, Utility x2 1259 | -8/Materials | Identified exit to Factory 1505 | -8/Materials | Core integrity fell below 50% 1791 | -8/Materials | Lost 4 parts (1n1u2w) 2047 | -8/Materials | Lost 3 parts (2n1w) 2067 | -8/Materials | Build established: Scavenger-Mutant 2087 | -8/Materials | Core integrity fell below 20% 2891 | -8/Materials | Entered Factory 2891 | -7/Factory | Evolved 2 slots: Utility x1, Weapon x1 2893 | -7/Factory | FarCom data flow suspended 2993 | -7/Factory | Identified exit to Lower Caves 3020 | -7/Factory | Garrison activated, responded to threat 3409 | -7/Factory | Repaired Lgt. Treads 3526 | -7/Factory | Build established: Scavenger-Tank 3727 | -7/Factory | Garrison activated, responded to threat 3857 | -7/Factory | Entered Lower Caves 4763 | -7/Lower Caves | Discovered new exit (range 7) 4787 | -7/Lower Caves | Entered another Lower Caves area 4811 | -7/Lower Caves | Learned Factory terminal intel 4826 | -7/Lower Caves | Discovered new exit (range 15) 5357 | -7/Lower Caves | Attracted the attention of an 0b10 checkpoint 5496 | -7/Lower Caves | Encountered a Warlord checkpoint 5729 | -7/Lower Caves | Trap Reconfigurator stolen by Master Thief 5729 | -7/Lower Caves | Firepult stolen by Master Thief 5730 | -7/Lower Caves | Encountered a Master Thief 5730 | -7/Lower Caves | Encountered a Master Thief 5730 | -7/Lower Caves | Encountered a Master Thief 5730 | -7/Lower Caves | Encountered a Master Thief 5730 | -7/Lower Caves | Encountered a Master Thief 5733 | -7/Lower Caves | 0b10 Alert Chip stolen by Master Thief 5740 | -7/Lower Caves | Exp. Sensor Array stolen by Master Thief 5746 | -7/Lower Caves | Gauss Rifle stolen by Master Thief 5761 | -7/Lower Caves | Discovered new exit (range 10) 5819 | -7/Lower Caves | Entered Data Miner 5819 | -7/Data Miner | Self-destructed Last Messages --------------- whatever we can steal from you!" Slug penetrates 7C-QMS(f). Slug penetrates Wall. 0b10 Alert Chip stolen. Slug penetrates 1G-41R(f). Slug penetrates Wall. Slug penetrates I8-SSY(f). Slug penetrates Wall. Slug penetrates I8-SSY(f). Slug penetrates Wall. Exp. Sensor Array stolen. Slug penetrates I8-SSY(f). Slug penetrates Wall. Slug penetrates I8-SSY(f). Gauss Rifle+ ripped off. Wall collapses. Slug penetrates Wall. EXIT=FOUND LOCATION=UNKNOWN GOAL=ESCAPE Map ----- +----------------------------------------------------+ | | | | | | | | | | | | | | | | | | | | | | | | | | | | | | | ???????????????????????????????? | | ???????????????????????????????? | | ???????????????????????????????? | | ???????????????????????????????? | | ???????????????????????????????? | | ???????????????????????????????? | | ????????????????##?????????????? | | ???????????######